bitfinex/quotes_SOLUSD_20220227
["timestamp","ask_amount","ask_price","bid_price","bid_amount"]
[1645964708717,1.84304949,91.335,91.263,26.43358921]
[1645964708917,6.0,91.334,91.271,110.2]
[1645964709318,42.22276977,91.333,91.271,112.94678921]
[1645964709621,6.0,91.332,91.271,112.94678921]
[1645964710020,8.1033205,91.332,91.263,23.6868]
[1645964710517,8.1033205,91.332,91.25,16.4375]
[1645964710717,8.1033205,91.332,91.235,110.2]
[1645964710918,7.6033205,91.332,91.235,110.2]
[1645964711318,7.6033205,91.332,91.237,110.2]
[1645964711618,4.381,91.331,91.237,110.2]
[1645964712020,7.6033205,91.332,91.237,110.2]
[1645964712518,16.4415,91.33,91.236,35.22450119]
[1645964712719,110.2,91.328,91.232,6.31]
[1645964712919,110.2,91.326,91.232,6.31]
[1645964713120,110.2,91.324,91.232,6.31]
[1645964713320,110.2,91.322,91.232,6.31]
[1645964713621,2.00955062,91.319,91.232,6.31]
[1645964713821,2.00842681,91.317,91.232,6.31]
[1645964714420,2.00842681,91.317,91.227,42.91425072]
[1645964714619,16.4454,91.31,91.227,42.91425072]
[1645964714828,1.77460814,91.309,91.227,42.91425072]
[1645964715024,4.382,91.308,91.227,42.91425072]
[1645964715425,22.5625,91.307,91.227,42.91425072]
[1645964715624,5.96472995,91.306,91.227,42.91425072]
[1645964715827,34.36351716,91.305,91.227,42.91425072]
[1645964716026,1.79056442,91.304,91.227,42.91425072]
[1645964717029,1.79056442,91.304,91.221,24.8175]
[1645964717432,16.447,91.3,91.221,24.8175]
[1645964717634,6.35449717,91.299,91.221,24.8175]
[1645964718029,1.97149717,91.299,91.221,24.8175]
[1645964718929,6.0,91.298,91.221,24.8175]
[1645964720952,7.89328837,91.298,91.221,24.8175]
[1645964724856,110.2,91.297,91.221,24.8175]
[1645964725057,16.4486,91.29,91.19,16.4483]
[1645964725256,1.78234362,91.289,91.199,24.8912]
[1645964725656,4.383,91.288,91.199,24.8912]
[1645964726156,1.86479829,91.286,91.203,40.92602584]
[1645964726358,6.24779829,91.286,91.203,40.92602584]
[1645964726757,16.4504,91.28,91.199,24.8912]
[1645964726958,110.2,91.278,91.199,24.8912]
[1645964727159,12.26842524,91.279,91.17,28.66463883]
[1645964727160,110.2,91.276,91.175,24.6786]
[1645964727359,110.2,91.274,91.175,24.6786]
[1645964727564,5.92526704,91.273,91.175,24.6786]
[1645964727759,1.66297547,91.271,91.184,41.42577494]
[1645964727962,4.384,91.27,91.184,41.42577494]
[1645964728359,2.74678921,91.269,91.184,41.42577494]
[1645964728558,1.85399573,91.259,91.184,41.42577494]
[1645964728760,45.15157175,91.257,91.184,41.42577494]
[1645964728961,1.66419342,91.256,91.184,41.42577494]
[1645964729159,4.385,91.255,91.184,41.42577494]
[1645964729560,1.66419342,91.256,91.184,41.42577494]
[1645964732465,6.0,91.255,91.184,41.42577494]
[1645964735672,6.0,91.255,91.185,166.33377974]
[1645964735869,43.46593027,91.257,91.187,110.2]
[1645964736570,43.46593027,91.257,91.189,110.2]
[1645964736970,43.46593027,91.257,91.191,110.2]
[1645964737169,43.46593027,91.257,91.193,110.2]
[1645964737370,23.0688,91.258,91.195,110.2]
[1645964737570,23.0688,91.258,91.197,110.2]
[1645964737971,23.0688,91.258,91.199,110.2]
[1645964738470,23.0688,91.258,91.201,110.2]
[1645964738669,1.83625295,91.276,91.201,110.2]
[1645964738872,24.4913,91.293,91.203,110.2]
[1645964739071,30.4913,91.293,91.203,110.2]
[1645964739371,30.4913,91.293,91.205,110.2]
[1645964739572,30.4913,91.293,91.207,110.2]
[1645964739771,38.07782386,91.292,91.21,16.4453]
[1645964739973,38.07782386,91.292,91.211,116.2]
[1645964741076,1.90614538,91.291,91.211,116.2]
[1645964742873,6.0,91.29,91.212,6.0]
[1645964743075,6.0,91.29,91.213,23.0412]
[1645964743278,6.0,91.29,91.215,110.2]
[1645964743477,6.0,91.29,91.217,110.2]
[1645964743877,6.0,91.29,91.218,2.74678921]
[1645964747682,6.0,91.29,91.216,110.2]
[1645964747883,6.0,91.29,91.215,16.8058]
[1645964748184,6.0,91.29,91.216,6.0]
[1645964749085,6.0,91.29,91.221,110.2]
[1645964749286,24.4913,91.293,91.223,110.2]
[1645964749484,24.4913,91.293,91.225,110.2]
[1645964749685,24.4913,91.293,91.227,110.2]
[1645964749886,24.4913,91.293,91.229,110.2]
[1645964750084,43.7260693,91.292,91.231,110.2]
[1645964750285,43.7260693,91.292,91.233,110.2]
[1645964750485,43.7260693,91.292,91.235,110.2]
[1645964751392,43.7260693,91.292,91.231,110.2]
[1645964751586,43.7260693,91.292,91.233,110.2]
[1645964752087,43.7260693,91.292,91.235,110.2]
[1645964752484,43.7260693,91.292,91.234,6.0]
[1645964752485,43.7260693,91.292,91.241,110.2]
[1645964753185,43.7260693,91.292,91.24,16.4401]
[1645964754085,41.2260693,91.292,91.24,16.4401]
[1645964755388,41.2260693,91.292,91.24,33.0612]
[1645964759391,41.2260693,91.292,91.24,143.2612]
[1645964760492,23.8896,91.307,91.242,110.2]
[1645964760695,23.8896,91.307,91.244,110.2]
[1645964760893,2.05566444,91.317,91.251,110.2]
[1645964761093,6.0,91.316,91.253,110.2]
[1645964761292,41.4992793,91.324,91.255,110.2]
[1645964761497,6.0,91.323,91.257,110.2]
[1645964761694,6.0,91.323,91.259,110.2]
[1645964761893,6.0,91.323,91.261,110.2]
[1645964762092,6.0,91.323,91.263,110.2]
[1645964762292,6.0,91.323,91.265,110.2]
[1645964762492,6.0,91.347,91.271,110.2]
[1645964762792,6.0,91.347,91.273,110.2]
[1645964762994,6.0,91.347,91.275,110.2]
[1645964763194,1.9382183,91.356,91.277,110.2]
[1645964763494,2.12391094,91.354,91.281,110.2]
[1645964764297,38.2631415,91.355,91.281,110.2]
[1645964764499,38.2631415,91.355,91.279,110.2]
[1645964764898,38.2631415,91.355,91.281,110.2]
[1645964765399,38.2631415,91.355,91.283,110.2]
[1645964765599,38.2631415,91.355,91.291,110.2]
[1645964765799,38.2631415,91.355,91.293,110.2]
[1645964767401,1.9210915,91.354,91.293,110.2]
[1645964767604,1.9210915,91.354,91.292,65.70069443]
[1645964768003,1.9210915,91.354,91.292,81.95829443]
[1645964769221,1.9210915,91.354,91.292,65.70069443]
[1645964769623,1.9210915,91.354,91.292,41.48349443]
[1645964769823,1.9210915,91.354,91.288,16.1689]
[1645964770719,1.9210915,91.354,91.289,38.07079564]
[1645964771119,6.0,91.353,91.289,38.07079564]
[1645964772024,6.0,91.353,91.288,16.1689]
[1645964772620,6.0,91.353,91.271,23.3954]
[1645964773121,7.73274151,91.353,91.271,23.3954]
[1645964774120,7.73274151,91.353,91.272,33.13676389]
[1645964774320,6.02856838,91.352,91.272,33.13676389]
[1645964774523,1.64856838,91.352,91.272,33.13676389]
[1645964774922,6.0,91.351,91.272,33.13676389]
[1645964776425,16.4378,91.35,91.272,33.13676389]
[1645964776625,1.65675938,91.349,91.272,33.13676389]
[1645964776825,1.65675938,91.349,91.271,23.3954]
[1645964778026,1.65675938,91.349,91.272,38.99272989]
[1645964778428,1.65675938,91.349,91.271,23.3954]
[1645964779634,1.65675938,91.349,91.271,61.95764933]
[1645964781931,6.0,91.348,91.271,61.95764933]
[1645964783231,7.66657288,91.348,91.271,61.95764933]
[1645964787736,6.0,91.348,91.271,61.95764933]
[1645964787937,1.61622631,91.353,91.271,61.95764933]
[1645964788335,4.38,91.352,91.271,61.95764933]
[1645964788535,1.61622631,91.353,91.271,61.95764933]
[1645964789940,4.38,91.352,91.271,61.95764933]
[1645964790638,1.61622631,91.353,91.271,61.95764933]
[1645964790839,6.0,91.352,91.271,61.95764933]
[1645964792138,6.0,91.352,91.27,16.4344]
[1645964792338,6.0,91.352,91.25,16.4376]
[1645964792339,16.4382,91.35,91.25,16.4376]
[1645964792540,116.20574924,91.349,91.256,24.334]
[1645964792739,1.56340067,91.348,91.256,24.334]
[1645964792938,4.381,91.347,91.256,24.334]
[1645964793139,110.2,91.346,91.256,24.334]
[1645964793338,1.76012907,91.345,91.256,24.334]
[1645964793539,16.4406,91.34,91.256,24.334]
[1645964793739,69.44053601,91.339,91.256,24.334]
[1645964793938,1.99556963,91.338,91.256,24.334]
[1645964795341,16.4413,91.33,91.23,16.4409]
[1645964795542,1.6852892,91.327,91.22,23.48977195]
[1645964795841,1.6852892,91.327,91.201,24.4812]
[1645964795842,4.382,91.326,91.201,48.2019]
[1645964796041,110.2,91.325,91.201,48.2019]
[1645964796242,110.2,91.323,91.201,48.2019]
[1645964796443,1.56130199,91.322,91.202,34.12443008]
[1645964796645,114.582,91.321,91.202,34.12443008]
[1645964796942,1.75920505,91.32,91.203,2.74678921]
[1645964797143,114.583,91.319,91.203,2.74678921]
[1645964797343,1.9338453,91.318,91.202,34.12443008]
[1645964797544,110.2,91.307,91.202,34.12443008]
[1645964797746,2.01894383,91.304,91.202,34.12443008]
[1645964798246,110.2,91.302,91.202,34.12443008]
[1645964798445,110.2,91.3,91.202,34.12443008]
[1645964798646,110.2,91.298,91.202,34.12443008]
[1645964798846,5.94293597,91.297,91.202,34.12443008]
[1645964799045,24.6385,91.296,91.202,34.12443008]
[1645964799245,6.25629938,91.295,91.202,34.12443008]
[1645964799446,110.2,91.293,91.202,34.12443008]
[1645964799647,1.64699276,91.289,91.202,34.12443008]
[1645964799850,6.0,91.288,91.202,34.12443008]
[1645964800050,4.383,91.287,91.202,34.12443008]
[1645964800253,6.21427778,91.287,91.202,34.12443008]
[1645964800451,1.83127778,91.287,91.202,34.12443008]
[1645964800651,2.74678921,91.286,91.202,34.12443008]
[1645964801351,6.21427778,91.287,91.202,34.12443008]
[1645964801552,6.21427778,91.287,91.203,24.622]
[1645964802151,1.83127778,91.287,91.203,24.622]
[1645964802353,4.57806699,91.287,91.203,24.622]
[1645964802575,4.383,91.286,91.203,24.622]
[1645964802954,41.87186523,91.279,91.203,24.622]
[1645964803152,2.05807988,91.278,91.203,24.622]
[1645964803353,1.82502988,91.276,91.203,24.622]
[1645964804253,1.82502988,91.276,91.202,34.12443008]
[1645964804855,1.82502988,91.276,91.183,16.2435]
[1645964805057,16.4523,91.27,91.184,6.0]
[1645964805260,1.63993485,91.269,91.184,6.0]
[1645964805758,1.63993485,91.269,91.185,24.1525]
[1645964805958,1.63993485,91.269,91.186,39.50932338]
[1645964806158,1.63993485,91.269,91.186,33.50932338]
[1645964806358,1.63993485,91.269,91.187,6.0]
[1645964806859,6.0,91.268,91.187,6.0]
[1645964807259,8.74678921,91.268,91.187,6.0]
[1645964807663,2.74678921,91.267,91.187,6.0]
[1645964808058,23.5449,91.266,91.186,33.50932338]
[1645964808258,47.46448805,91.265,91.187,6.0]
[1645964808459,1.85643681,91.264,91.187,6.0]
[1645964809059,1.85643681,91.264,91.185,24.1525]
[1645964809259,1.94115978,91.259,91.185,24.1525]
[1645964809460,4.384,91.258,91.185,24.1525]
[1645964809859,4.384,91.258,91.167,16.1572]
[1645964810080,4.384,91.258,91.174,39.48243757]
[1645964810579,16.456,91.25,91.175,25.82362525]
[1645964810781,38.59901644,91.249,91.175,25.82362525]
[1645964810980,2.07842901,91.248,91.175,25.82362525]
[1645964811181,23.1296,91.247,91.175,25.82362525]
[1645964811382,8.00373151,91.246,91.175,25.82362525]
[1645964813084,8.00373151,91.246,91.174,39.48243757]
[1645964816384,8.00373151,91.246,91.174,65.30606282]
[1645964817586,6.0,91.246,91.175,110.2]
[1645964817785,6.0,91.246,91.18,16.4504]
[1645964817987,23.1296,91.247,91.18,16.4504]
[1645964818487,36.716028,91.249,91.181,110.2]
[1645964818687,36.716028,91.249,91.183,110.2]
[1645964820289,24.4731,91.261,91.183,110.2]
[1645964820690,24.4731,91.261,91.183,112.94678921]
[1645964820891,24.4731,91.261,91.185,110.2]
[1645964821294,39.70856284,91.26,91.186,2.74678921]
[1645964821791,6.0,91.259,91.19,110.2]
[1645964822591,6.0,91.259,91.19,114.584]
[1645964822994,6.0,91.259,91.19,131.0326]
[1645964823191,1.88931071,91.274,91.19,126.6486]
[1645964823393,6.4439403,91.289,91.19,126.6486]
[1645964823594,2.0599403,91.289,91.192,110.2]
[1645964823791,2.0599403,91.289,91.193,4.384]
[1645964823991,59.53772689,91.288,91.195,110.2]
[1645964824192,1.73019836,91.287,91.195,110.2]
[1645964824593,1.73019836,91.287,91.201,110.2]
[1645964824995,27.1401,91.302,91.201,110.2]
[1645964825195,24.3324,91.312,91.203,110.2]
[1645964825394,7.80260158,91.311,91.205,110.2]
[1645964825596,7.80260158,91.311,91.207,110.2]
[1645964825794,6.0,91.311,91.209,110.2]
[1645964825994,38.28555546,91.31,91.211,154.5939812]
[1645964826194,1.69575022,91.309,91.213,110.2]
[1645964826393,1.69575022,91.309,91.214,4.383]
[1645964826595,1.69575022,91.309,91.212,4.383]
[1645964826795,1.69575022,91.309,91.213,6.0]
[1645964826993,1.69575022,91.309,91.214,4.383]
[1645964827494,1.69575022,91.309,91.22,16.443]
[1645964827693,1.69575022,91.309,91.221,22.5799]
[1645964828294,1.69575022,91.309,91.222,110.2]
[1645964828494,1.98795826,91.309,91.222,110.2]
[1645964828896,1.98795826,91.309,91.226,110.2]
[1645964829294,2.74678921,91.308,91.225,41.59282358]
[1645964829496,2.74678921,91.308,91.23,16.4413]
[1645964829695,1.98795826,91.309,91.23,16.4413]
[1645964830998,6.0,91.308,91.23,16.4413]
[1645964833199,2.74678921,91.307,91.225,41.59282358]
[1645964834000,16.4468,91.3,91.225,41.59282358]
[1645964834201,6.24077969,91.299,91.225,41.59282358]
[1645964834401,7.12878921,91.299,91.225,41.59282358]
[1645964834603,2.74678921,91.298,91.225,41.59282358]
[1645964835101,2.74678921,91.298,91.221,22.5799]
[1645964835307,110.2,91.289,91.197,24.9486]
[1645964835501,1.72940017,91.286,91.197,24.9486]
[1645964835701,4.383,91.285,91.197,24.9486]
[1645964836101,176.09051495,91.284,91.198,42.51185401]
[1645964836301,1.77493933,91.281,91.198,42.51185401]
[1645964836500,16.4525,91.27,91.198,42.51185401]
[1645964836703,34.86856126,91.268,91.198,42.51185401]
[1645964836901,118.04372508,91.267,91.198,42.51185401]
[1645964837102,116.2,91.267,91.198,42.51185401]
[1645964837301,2.0989772,91.266,91.198,42.51185401]
[1645964838201,1.54954193,91.259,91.198,42.51185401]
[1645964840604,6.0,91.258,91.198,42.51185401]
[1645964841405,6.0,91.258,91.197,24.9486]
[1645964842908,2.74678921,91.267,91.198,110.2]
[1645964843208,2.74678921,91.28,91.2,110.2]
[1645964843409,1.54994283,91.354,91.202,110.2]
[1645964843610,4.382,91.353,91.204,110.2]
[1645964843829,110.2,91.352,91.206,110.2]
[1645964844029,110.2,91.35,91.208,110.2]
[1645964844229,16.4447,91.32,91.22,16.4427]
[1645964844529,1.95584388,91.318,91.221,71.4180987]
[1645964844731,1.95584388,91.318,91.221,101.9872494]
[1645964844928,1.95584388,91.318,91.222,110.2]
[1645964845134,1.95584388,91.318,91.224,110.2]
[1645964845334,1.95584388,91.318,91.231,110.2]
[1645964845533,1.95584388,91.318,91.233,110.2]
[1645964845734,1.95584388,91.318,91.235,110.2]
[1645964845935,1.95584388,91.318,91.234,6.0]
[1645964845936,1.95584388,91.318,91.237,110.2]
[1645964846137,1.95584388,91.318,91.238,116.2]
[1645964846336,42.46736702,91.319,91.241,110.2]
[1645964846538,42.46736702,91.319,91.243,110.2]
[1645964846736,42.46736702,91.319,91.245,110.2]
[1645964846936,42.46736702,91.319,91.244,6.0]
[1645964846937,42.46736702,91.319,91.247,110.2]
[1645964847338,42.46736702,91.319,91.248,116.45]
[1645964847540,42.46736702,91.319,91.26,16.4363]
[1645964847738,42.46736702,91.319,91.261,42.16770325]
[1645964848137,42.46736702,91.319,91.262,2.74678921]
[1645964849938,1.60173901,91.353,91.262,2.74678921]
[1645964850138,6.0,91.352,91.262,2.74678921]
[1645964850539,6.0,91.352,91.262,30.5691507]
[1645964850940,1.60799849,91.35,91.262,30.5691507]
[1645964851841,1.60799849,91.35,91.263,2.74678921]
[1645964852444,1.60799849,91.35,91.263,30.5691507]
[1645964853442,1.60799849,91.35,91.264,2.74678921]
[1645964854845,6.0,91.349,91.264,2.74678921]
[1645964855447,6.0,91.349,91.27,16.4347]
[1645964855845,6.0,91.349,91.271,2.74678921]
[1645964859350,6.0,91.349,91.262,23.8843]
[1645964859548,114.58,91.348,91.262,23.8843]
[1645964859748,1.86357438,91.347,91.261,42.16770325]
[1645964859948,4.38,91.346,91.261,42.16770325]
[1645964860550,110.2,91.339,91.234,24.7213]
[1645964860751,110.2,91.337,91.234,24.7213]
[1645964860949,110.2,91.335,91.234,24.7213]
[1645964861149,110.2,91.333,91.234,24.7213]
[1645964861350,110.2,91.331,91.234,24.7213]
[1645964861548,110.2,91.328,91.235,40.85909991]
[1645964861750,110.2,91.326,91.235,40.85909991]
[1645964861951,110.2,91.324,91.235,40.85909991]
[1645964862153,110.2,91.322,91.235,40.85909991]
[1645964862352,1.66056794,91.321,91.235,40.85909991]
[1645964862551,4.382,91.32,91.235,40.85909991]
[1645964862952,8.08270203,91.319,91.235,40.85909991]
[1645964863151,5.9743729,91.318,91.235,40.85909991]
[1645964863353,4.382,91.318,91.235,40.85909991]
[1645964863555,4.382,91.322,91.235,40.85909991]
[1645964864456,16.4448,91.32,91.235,40.85909991]
[1645964864654,6.36466344,91.319,91.235,40.85909991]
[1645964865056,110.2,91.318,91.235,40.85909991]
[1645964865254,110.2,91.316,91.235,40.85909991]
[1645964865453,110.2,91.313,91.235,40.85909991]
[1645964865654,110.2,91.311,91.22,2.74678921]
[1645964865857,110.2,91.309,91.22,2.74678921]
[1645964866057,110.2,91.307,91.22,2.74678921]
[1645964866253,110.2,91.305,91.212,24.7718]
[1645964866459,110.2,91.303,91.212,24.7718]
[1645964866655,110.2,91.301,91.211,24.2522]
[1645964866856,155.55215586,91.299,91.201,40.11650346]
[1645964867061,155.55215586,91.299,91.183,2.74678921]
[1645964867062,110.2,91.297,91.183,2.74678921]
[1645964867257,110.2,91.295,91.179,47.0537]
[1645964867457,110.2,91.293,91.179,47.0537]
[1645964867655,110.2,91.291,91.179,47.0537]
[1645964867855,110.2,91.289,91.179,47.0537]
[1645964868055,110.2,91.287,91.18,44.35676747]
[1645964868256,110.2,91.284,91.18,44.35676747]
[1645964868457,110.2,91.282,91.18,44.35676747]
[1645964868658,110.2,91.28,91.18,44.35676747]
[1645964868861,1.57075892,91.279,91.155,25.30902815]
[1645964869058,1.57075892,91.279,91.144,2.74678921]
[1645964869059,4.384,91.278,91.144,2.74678921]
[1645964869259,110.2,91.269,91.146,55.0137]
[1645964869457,2.10572994,91.266,91.146,55.0137]
[1645964869659,4.385,91.265,91.146,55.0137]
[1645964869858,110.2,91.263,91.147,35.52391778]
[1645964870084,16.4591,91.25,91.151,110.2]
[1645964870259,1.90465262,91.262,91.153,110.2]
[1645964870462,1.90465262,91.262,91.155,110.2]
[1645964870758,1.90465262,91.262,91.157,110.2]
[1645964870958,6.0,91.261,91.158,139.2831]
[1645964871361,6.0,91.261,91.158,142.02988921]
[1645964871558,4.385,91.26,91.171,35.07500879]
[1645964871758,1.9700221,91.26,91.171,35.07500879]
[1645964872162,1.9700221,91.26,91.172,110.2]
[1645964872359,1.9700221,91.26,91.172,112.94678921]
[1645964872761,1.9700221,91.26,91.173,2.74678921]
[1645964873162,1.9700221,91.26,91.18,25.81472316]
[1645964877787,6.0,91.259,91.18,25.81472316]
[1645964878390,6.0,91.259,91.181,110.2]
[1645964878588,1.9700221,91.26,91.181,112.94678921]
[1645964878888,110.2,91.289,91.183,110.2]
[1645964879089,1.80561162,91.288,91.185,110.2]
[1645964879292,1.80561162,91.288,91.187,110.2]
[1645964879488,1.80561162,91.288,91.191,110.2]
[1645964879694,37.53676454,91.286,91.193,110.2]
[1645964879890,6.0,91.285,91.195,110.2]
[1645964880189,6.0,91.285,91.197,110.2]
[1645964880488,6.0,91.285,91.211,110.2]
[1645964880690,6.0,91.285,91.213,110.2]
[1645964881890,6.0,91.285,91.215,110.2]
[1645964882092,6.0,91.285,91.215,117.75]
[1645964882294,1.55178639,91.313,91.221,110.2]
[1645964882491,1.55178639,91.313,91.223,110.2]
[1645964882892,23.1928,91.314,91.225,110.2]
[1645964883093,38.98170955,91.313,91.227,110.2]
[1645964883291,38.98170955,91.313,91.226,46.46733303]
[1645964883292,38.98170955,91.313,91.231,110.2]
[1645964883493,38.98170955,91.313,91.232,0.25]
[1645964883693,38.98170955,91.313,91.233,110.2]
[1645964883892,38.98170955,91.313,91.235,110.2]
[1645964884094,38.98170955,91.313,91.234,6.0]
[1645964884292,38.98170955,91.313,91.235,110.2]
[1645964884993,40.93058589,91.313,91.235,110.2]
[1645964885394,40.93058589,91.313,91.231,110.2]
[1645964885996,6.0,91.312,91.231,110.2]
[1645964886197,8.09968265,91.312,91.231,110.2]
[1645964886596,8.09968265,91.312,91.24,16.4404]
[1645964886798,8.09968265,91.312,91.241,41.05175526]
[1645964890305,110.2,91.311,91.241,41.05175526]
[1645964890505,110.2,91.311,91.222,22.879]
[1645964890506,1.9606028,91.31,91.222,22.879]
[1645964890703,4.382,91.309,91.222,22.879]
[1645964890904,4.382,91.309,91.195,66.09]
[1645964891105,23.74552777,91.345,91.223,95.0]
[1645964891304,2.07270766,91.378,91.225,110.2]
[1645964891504,0.54983638,91.379,91.251,110.2]
[1645964891804,0.54983638,91.379,91.25,54.7632]
[1645964891805,0.54983638,91.379,91.254,2.82383919]
[1645964892004,36.9698503,91.354,91.256,110.2]
[1645964892204,36.9698503,91.354,91.258,110.2]
[1645964892403,36.9698503,91.354,91.262,0.53]
[1645964892607,36.9698503,91.354,91.281,110.2]
[1645964892804,0.54983638,91.379,91.283,110.2]
[1645964893003,0.54983638,91.379,91.285,110.2]
[1645964893205,0.54983638,91.379,91.287,110.2]
[1645964893406,0.54983638,91.379,91.289,110.2]
[1645964893605,0.54983638,91.379,91.291,110.2]
[1645964893806,0.54983638,91.379,91.293,110.2]
[1645964894006,0.54983638,91.379,91.295,110.2]
[1645964894208,0.54983638,91.379,91.31,16.4268]
[1645964894506,0.54983638,91.379,91.31,51.61435601]
[1645964896612,0.54983638,91.379,91.311,2.74678921]
[1645964897015,0.54983638,91.379,91.31,16.4268]
[1645964897617,0.54983638,91.379,91.293,2.74678921]
[1645964897815,4.378,91.378,91.265,46.1323]
[1645964898717,110.2,91.376,91.266,43.31387773]
[1645964898918,110.2,91.374,91.266,43.31387773]
[1645964899124,110.2,91.372,91.266,43.31387773]
[1645964899322,1.77503943,91.371,91.254,2.74678921]
[1645964899519,4.38,91.37,91.254,2.74678921]
[1645964900320,4.38,91.37,91.255,40.98340062]
[1645964900522,33.81132015,91.377,91.281,110.2]
[1645964900722,33.81132015,91.377,91.283,110.2]
[1645964900923,30.75022015,91.377,91.285,110.2]
[1645964901122,30.75022015,91.377,91.287,110.2]
[1645964901324,30.75022015,91.377,91.289,110.2]
[1645964901524,30.75022015,91.377,91.311,110.2]
[1645964901723,30.75022015,91.377,91.297,110.2]
[1645964902123,7.55766602,91.376,91.291,49.2514]
[1645964902424,7.55766602,91.376,91.298,2.74678921]
[1645964905440,6.0,91.376,91.301,110.2]
[1645964905940,6.0,91.376,91.302,2.74678921]
[1645964906341,8.00353943,91.376,91.302,2.74678921]
[1645964908042,2.10757736,91.375,91.302,2.74678921]
[1645964908843,2.10757736,91.375,91.268,23.96250638]
[1645964909043,111.90405175,91.373,91.268,48.58460638]
[1645964909243,6.48046342,91.372,91.269,2.74678921]
[1645964909444,1.79002182,91.37,91.269,2.74678921]
[1645964909645,4.38,91.369,91.269,2.74678921]
[1645964910246,2.74678921,91.368,91.269,2.74678921]
[1645964910449,4.38,91.367,91.269,2.74678921]
[1645964910946,6.0,91.366,91.269,2.74678921]
[1645964911146,4.38,91.365,91.269,2.74678921]
[1645964911345,6.2600409,91.365,91.269,2.74678921]
[1645964911545,24.0567,91.364,91.269,2.74678921]
[1645964911747,35.22643664,91.363,91.269,2.74678921]
[1645964911946,1.65960054,91.362,91.269,2.74678921]
[1645964912146,4.38,91.361,91.269,2.74678921]
[1645964912346,110.2,91.36,91.269,2.74678921]
[1645964912547,2.08166102,91.359,91.269,2.74678921]
[1645964913049,2.08166102,91.359,91.252,2.74678921]
[1645964913247,2.08166102,91.359,91.252,27.25168921]
[1645964913248,4.38,91.358,91.252,27.25168921]
[1645964914249,7.12678921,91.358,91.252,27.25168921]
[1645964914451,110.2,91.349,91.252,27.25168921]
[1645964914653,27.0985,91.348,91.252,27.25168921]
[1645964914852,1.56289632,91.347,91.252,24.5049]
[1645964915251,111.76289632,91.347,91.252,24.5049]
[1645964915452,7.98001939,91.346,91.252,24.5049]
[1645964915654,40.36056198,91.344,91.252,24.5049]
[1645964915853,6.3651149,91.343,91.252,24.5049]
[1645964916553,16.4416,91.34,91.252,24.5049]
[1645964916753,6.07684061,91.339,91.252,24.5049]
[1645964918155,1.69584061,91.339,91.252,24.5049]
[1645964918553,1.69584061,91.339,91.253,23.96797334]
[1645964918953,1.69584061,91.339,91.254,41.93047972]
[1645964919156,1.69584061,91.339,91.255,6.0]
[1645964919355,6.0,91.338,91.256,45.65908025]
[1645964919557,6.0,91.338,91.257,6.0]
[1645964919955,6.0,91.338,91.256,63.62705359]
[1645964920157,6.0,91.338,91.26,16.4363]
[1645964921356,6.0,91.338,91.261,2.74678921]
[1645964923156,6.0,91.338,91.261,112.94678921]
[1645964923458,1.69584061,91.339,91.263,110.2]
[1645964923858,1.69584061,91.339,91.265,110.2]
[1645964925060,1.69584061,91.339,91.264,23.4136]
[1645964926062,1.69584061,91.339,91.265,110.2]
[1645964926860,6.0,91.338,91.265,110.2]
[1645964927259,6.0,91.338,91.264,23.4136]
[1645964928962,6.0,91.338,91.265,110.2]
[1645964929764,6.0,91.338,91.266,151.93276278]
[1645964929966,1.69584061,91.339,91.266,150.93276278]
[1645964933973,6.0,91.338,91.268,110.2]
[1645964934473,6.0,91.338,91.266,40.73276278]
[1645964935675,6.0,91.338,91.241,110.2]
[1645964935874,2.74678921,91.337,91.239,24.2839]